bitfinex/quotes_SOLUSD_20241210
["timestamp","ask_amount","ask_price","bid_price","bid_amount"]
[1733836137813,2.79330012,213.37,213.26,20.0]
[1733836138008,2.79330012,213.37,213.16,9.93920667]
[1733836138009,10.12544406,213.35,213.2,20.0]
[1733836138312,23.902374,213.33,213.2,20.0]
[1733836138483,23.902374,213.31,213.2,20.0]
[1733836138688,0.87929672,213.3,213.2,20.0]
[1733836139214,20.87918136,213.36,213.23,38.01976459]
[1733836139415,0.87918136,213.36,213.24,0.12549]
[1733836139620,2.78141407,213.38,213.23,38.01976459]
[1733836139790,0.87913895,213.37,213.21,38.01976459]
[1733836139982,10.12544406,213.36,213.21,38.01976459]
[1733836140198,10.12544406,213.36,213.2,20.0]
[1733836140199,0.12549,213.34,213.2,20.0]
[1733836140401,0.12549,213.34,213.19,38.01976459]
[1733836140402,0.12549,213.32,213.19,38.01976459]
[1733836140637,0.87925337,213.31,213.19,38.01976459]
[1733836140802,0.87925337,213.31,213.15,38.01976459]
[1733836140803,23.902374,213.3,213.15,38.01976459]
[1733836141004,0.87947955,213.29,213.19,38.01976459]
[1733836141542,0.87947955,213.29,213.21,38.01976459]
[1733836141694,23.902374,213.33,213.21,38.01976459]
[1733836141898,0.87923059,213.32,213.19,38.01976459]
[1733836142123,0.87923059,213.32,213.21,38.01976459]
[1733836142336,20.0,213.3,213.19,38.01976459]
[1733836142503,0.87924757,213.29,213.19,38.01976459]
[1733836142700,0.87924757,213.29,213.17,38.01976459]
[1733836143705,0.87924885,213.32,213.24,38.01976459]
[1733836144211,0.87911694,213.37,213.26,38.01976459]
[1733836144399,0.87911694,213.37,213.27,38.01976459]
[1733836144823,0.87911694,213.37,213.27,20.0]
[1733836145042,0.87911694,213.37,213.23,38.01976459]
[1733836145205,0.12549,213.36,213.18,38.01976459]
[1733836145411,0.87923444,213.35,213.21,20.0]
[1733836145605,0.87923444,213.35,213.21,58.01976459]
[1733836145823,0.87923444,213.35,213.22,38.01976459]
[1733836146004,20.0,213.37,213.22,38.01976459]
[1733836146005,3.6433998,213.39,213.28,38.01976459]
[1733836146428,0.87887836,213.39,213.3,38.01976459]
[1733836146709,9.15316234,213.48,213.32,38.01976459]
[1733836147102,9.15316234,213.48,213.33,38.01976459]
[1733836147309,2.81054839,213.46,213.33,0.12549]
[1733836147546,0.12549,213.44,213.29,20.0]
[1733836147836,0.12549,213.42,213.29,20.0]
[1733836148042,0.12549,213.4,213.29,20.0]
[1733836148247,0.12549,213.38,213.26,20.0]
[1733836148440,0.12549,213.38,213.27,20.0]
[1733836148739,0.12549,213.36,213.25,20.0]
[1733836149316,0.87897791,213.37,213.25,38.01976459]
[1733836149522,0.87886615,213.39,213.26,38.01976459]
[1733836149705,0.87886615,213.39,213.25,38.01976459]
[1733836150110,0.12549,213.43,213.27,38.01976459]
[1733836150408,10.0,213.45,213.27,38.01976459]
[1733836150409,0.12549,213.41,213.27,38.01976459]
[1733836150614,0.87885051,213.42,213.25,38.01976459]
[1733836150615,0.12549,213.39,213.25,38.01976459]
[1733836150818,0.12549,213.37,213.23,0.12549]
[1733836151051,23.776884,213.4,213.26,38.01976459]
[1733836151239,0.87889177,213.39,213.26,38.01976459]
[1733836151748,0.12549,213.38,213.25,38.01976459]
[1733836151923,0.87890779,213.37,213.25,38.01976459]
[1733836152834,0.87891708,213.36,213.25,38.01976459]
[1733836153141,1.00441116,213.38,213.25,38.01976459]
[1733836153308,0.87892116,213.38,213.3,20.0]
[1733836153513,0.12549,213.43,213.3,20.0]
[1733836153723,0.12549,213.41,213.3,20.0]
[1733836153920,1.00434295,213.41,213.3,20.0]
[1733836154442,9.99995406,213.49,213.3,20.0]
[1733836154443,0.87875804,213.45,213.33,0.12549]
[1733836154612,0.87875804,213.45,213.3,58.01976459]
[1733836154812,0.12549,213.44,213.3,58.01976459]
[1733836155045,0.87873849,213.43,213.31,23.902374]
[1733836155342,2.87542674,213.47,213.31,23.902374]
[1733836155343,0.87860379,213.46,213.31,61.92213859]
[1733836155858,20.0,213.45,213.31,61.92213859]
[1733836156150,0.5749028,213.54,213.37,38.14525459]
[1733836156450,0.87836529,213.53,213.41,23.902374]
[1733836157149,0.87836529,213.53,213.4,38.01976459]
[1733836157337,0.12549,213.52,213.36,20.0]
[1733836157535,20.12549,213.5,213.36,20.0]
[1733836157739,0.87846908,213.49,213.35,38.01976459]
[1733836158252,0.12549,213.48,213.35,38.01976459]
[1733836158456,0.87852144,213.47,213.35,38.01976459]
[1733836158819,23.902374,213.5,213.35,38.01976459]
[1733836159021,0.12549,213.48,213.35,38.01976459]
[1733836159344,0.87852114,213.49,213.38,0.12549]
[1733836159647,0.12549,213.51,213.35,38.01976459]
[1733836159832,23.902374,213.51,213.35,38.01976459]
[1733836160160,0.12549,213.49,213.36,0.12549]
[1733836160533,0.12549,213.49,213.34,23.776884]
[1733836160734,0.12549,213.49,213.37,20.0]
[1733836160937,0.87848912,213.5,213.38,0.12549]
[1733836161260,0.5749028,213.54,213.38,0.12549]
[1733836161261,0.5749028,213.54,213.41,20.0]
[1733836161744,0.87822133,213.53,213.42,20.0]
[1733836162343,0.5749028,213.54,213.38,23.902374]
[1733836162344,0.5749028,213.54,213.47,0.12549]
[1733836162552,0.5749028,213.54,213.47,38.27074459]
[1733836162730,0.5749028,213.54,213.48,23.776884]
[1733836162930,0.5749028,213.54,213.49,0.12549]
[1733836163426,0.5749028,213.54,213.45,38.01976459]
[1733836163626,0.5749028,213.54,213.48,20.0]
[1733836164558,0.5749028,213.54,213.36,1.0]
[1733836164719,0.5749028,213.54,213.49,1.0]
[1733836165143,0.5749028,213.54,213.53,20.0]
[1733836165341,0.5749028,213.54,213.53,20.12549]
[1733836165641,0.5749028,213.54,213.53,20.0]
[1733836166222,0.5749028,213.54,213.53,43.902374]
[1733836166420,0.5749028,213.54,213.53,82.04762859]
[1733836167040,0.5749028,213.54,213.53,81.92213859]
[1733836167244,0.5749028,213.54,213.53,20.12549]
[1733836167750,0.5749028,213.54,213.53,20.0]
[1733836167947,0.5749028,213.54,213.49,313.0]
[1733836168130,0.5749028,213.54,213.49,1.0]
[1733836168923,0.5749028,213.54,213.53,1.0]
[1733836169341,0.5749028,213.54,213.49,1.0]
[1733836169342,0.7003928,213.54,213.49,1.0]
[1733836169749,1.00373986,213.53,213.49,1.0]
[1733836169921,20.12549,213.5,213.49,1.0]
[1733836170124,0.87844908,213.51,213.49,1.0]
[1733836170351,0.87823578,213.53,213.49,1.0]
[1733836170856,0.12549,213.52,213.49,1.0]
[1733836171154,0.87839227,213.51,213.49,1.0]
[1733836171449,0.87839227,213.52,213.49,1.0]
[1733836172253,0.5749028,213.54,213.49,1.0]
[1733836174932,0.87816528,213.53,213.49,1.0]
[1733836175953,0.87823296,213.53,213.49,1.0]
[1733836176459,0.5749028,213.54,213.49,1.0]
[1733836179744,0.5749028,213.54,213.5,61.92213859]
[1733836179937,0.5749028,213.54,213.49,1.0]
[1733836180161,0.5749028,213.54,213.5,20.0]
[1733836180363,0.5749028,213.54,213.49,1.0]
[1733836181950,0.5749028,213.54,213.49,39.01976459]
[1733836182837,0.5749028,213.54,213.5,0.12549]
[1733836183156,0.5749028,213.54,213.5,38.14525459]
[1733836183344,0.5749028,213.54,213.51,38.01976459]
[1733836183879,0.5749028,213.54,213.53,61.92213859]
[1733836184032,0.03799026,213.54,213.53,61.92213859]
[1733836184233,0.03799026,213.54,213.53,62.17311859]
[1733836184539,0.87758855,213.73,213.53,62.17311859]
[1733836184540,0.87758855,213.73,213.58,23.776884]
[1733836184865,0.87758855,213.73,213.59,38.14525459]
[1733836185052,0.8774284,213.74,213.61,0.12549]
[1733836185265,8.8263028,213.75,213.62,38.01976459]
[1733836185447,0.87735804,213.73,213.61,0.12549]
[1733836185654,8.8263028,213.75,213.61,38.14525459]
[1733836185966,8.8263028,213.75,213.62,61.79664859]
[1733836186475,0.87728601,213.74,213.62,23.776884]
[1733836186976,0.87728601,213.74,213.62,61.79664859]
[1733836187164,0.87728601,213.74,213.73,38.01976459]
[1733836187376,0.5749028,213.75,213.73,38.01976459]
[1733836187377,0.5749028,213.75,213.74,23.902374]
[1733836187555,0.5749028,213.75,213.74,61.92213859]
[1733836188180,0.5749028,213.75,213.74,373.92213859]
[1733836188854,0.5749028,213.75,213.74,374.04762859]
[1733836189050,0.87671279,213.94,213.8,0.12549]
[1733836189252,0.87671279,213.94,213.81,38.01976459]
[1733836189485,0.87671279,213.94,213.8,38.01976459]
[1733836189655,0.87671279,213.94,213.78,4.7637]
[1733836189993,20.12544406,213.93,213.74,1.0]
[1733836190174,0.12549,213.9,213.74,1.0]
[1733836190370,1.00243683,213.9,213.74,1.0]
[1733836190557,0.12549,213.88,213.74,1.0]
[1733836190757,0.12549,213.86,213.74,1.0]
[1733836190977,0.12549,213.83,213.74,1.0]
[1733836191195,0.87710267,213.83,213.74,1.0]
[1733836191494,0.42553192,213.82,213.74,1.0]
[1733836191855,0.42553192,213.82,213.74,39.01976459]
[1733836192055,0.42553192,213.82,213.75,38.01976459]
[1733836192251,0.42553192,213.82,213.74,39.01976459]
[1733836192891,0.42553192,213.82,213.75,38.01976459]
[1733836193266,0.42553192,213.82,213.74,39.01976459]
[1733836193469,0.42553192,213.82,213.74,1.0]
[1733836194356,0.42553192,213.82,213.75,38.01976459]
[1733836194562,0.42553192,213.82,213.75,1.0]
[1733836194769,0.42553192,213.82,213.79,38.01976459]
[1733836195068,0.42553192,213.82,213.8,38.01976459]
[1733836195275,0.42553192,213.82,213.81,38.01976459]
[1733836195455,0.42553192,213.82,213.81,61.92213859]
[1733836197385,0.5749028,213.96,213.84,20.0]
[1733836197567,0.5749028,213.96,213.87,38.01976459]
[1733836197885,0.5749028,213.96,213.89,38.01976459]
[1733836199360,0.5749028,213.96,213.9,38.01976459]
[1733836199776,0.5749028,213.96,213.87,38.01976459]
[1733836199986,0.5749028,213.96,213.86,38.01976459]
[1733836200168,9.0,213.95,213.85,38.01976459]
[1733836200372,9.0,213.95,213.84,38.01976459]
[1733836200564,0.87647294,213.94,213.78,38.01976459]
[1733836201074,0.87647294,213.94,213.8,38.01976459]
[1733836201277,0.87647294,213.94,213.75,3.84476756]
[1733836201278,0.87647294,213.94,213.77,0.25098]
[1733836201472,9.0,213.95,213.86,38.01976459]
[1733836202092,9.0,213.95,213.87,61.79664859]
[1733836202266,9.0,213.95,213.79,21.6934]
[1733836202267,9.0,213.95,213.85,38.01976459]
[1733836202465,9.0,213.95,213.86,38.01976459]
[1733836202794,0.8763853,213.94,213.82,38.01976459]
[1733836203001,0.8763853,213.94,213.83,38.01976459]
[1733836203364,0.8763853,213.94,213.81,38.01976459]
[1733836203694,0.12549,213.89,213.75,1.0]
[1733836203951,20.12549,213.86,213.75,1.0]
[1733836204191,0.12549,213.81,213.75,1.0]
[1733836204409,20.0,213.8,213.75,1.0]
[1733836204568,0.87727324,213.79,213.75,1.0]
[1733836204772,20.0,213.8,213.75,1.0]
[1733836205003,20.0,213.83,213.75,1.0]
[1733836205308,0.12549,213.8,213.75,1.0]
[1733836205467,0.87711789,213.82,213.75,1.0]
[1733836205799,20.12549,213.81,213.75,1.0]
[1733836206094,0.87722852,213.8,213.75,1.0]
[1733836206399,0.87713999,213.83,213.75,1.0]
[1733836206692,0.87694023,213.89,213.75,39.01976459]
[1733836206896,0.12549,213.88,213.75,1.0]
[1733836207094,0.87696318,213.87,213.75,1.0]
[1733836207277,0.87680302,213.89,213.75,1.0]
[1733836207802,0.87680302,213.89,213.76,38.01976459]
[1733836208005,0.87680302,213.89,213.77,23.776884]
[1733836208292,8.1738,213.9,213.8,20.0]
[1733836208508,0.87666669,213.89,213.8,20.0]
[1733836208799,0.87666669,213.93,213.8,20.0]
[1733836209000,0.87658584,213.94,213.81,61.92213859]
[1733836209171,0.87658584,213.94,213.81,38.01976459]
[1733836210207,9.0,213.95,213.85,38.01976459]
[1733836210379,9.0,213.95,213.86,23.776884]
[1733836210585,9.0,213.95,213.88,23.776884]
[1733836211397,9.0,213.95,213.9,1.0]
[1733836212924,9.0,213.95,213.92,23.776884]
[1733836213308,9.0,213.95,213.93,38.14525459]
[1733836213507,9.0,213.95,213.94,23.902374]
[1733836213916,9.0,213.95,213.94,24.153354]
[1733836214121,9.0,213.95,213.94,24.027864]
[1733836214122,0.79289755,213.95,213.94,24.027864]
[1733836214427,0.79289755,213.95,213.94,62.04762859]
[1733836214626,0.79289755,213.95,213.94,61.92213859]
[1733836215252,0.79289755,213.95,213.91,38.01976459]
[1733836215428,0.79289755,213.95,213.9,1.0]
[1733836216335,0.79289755,213.95,213.91,38.01976459]
[1733836216524,0.79289755,213.95,213.92,38.01976459]
[1733836216835,0.79289755,213.95,213.9,1.0]
[1733836219137,0.87644688,213.94,213.9,1.0]
[1733836219321,1.66939446,213.95,213.9,1.0]
[1733836219723,21.66939446,213.95,213.9,1.0]
[1733836220234,1.66939446,213.95,213.9,1.0]
[1733836220424,0.79289755,213.95,213.9,1.0]
[1733836220630,0.87649497,213.94,213.9,1.0]
[1733836220805,0.79289755,213.95,213.9,1.0]
[1733836221005,0.87647453,213.94,213.9,1.0]
[1733836221236,0.79289755,213.95,213.9,1.0]
[1733836223816,0.79289755,213.95,213.94,58.14525459]
[1733836224138,0.79289755,213.95,213.94,58.01976459]
[1733836225031,0.79289755,213.95,213.94,20.0]
[1733836225213,0.79289755,213.95,213.92,38.01976459]
[1733836225214,0.79289755,213.95,213.92,20.0]
[1733836225414,0.79289755,213.95,213.91,20.0]
[1733836226233,0.79289755,213.95,213.93,20.0]
[1733836227247,0.79289755,213.95,213.92,38.01976459]
[1733836227658,0.79289755,213.95,213.93,20.0]
[1733836228228,0.79289755,213.95,213.91,20.0]
[1733836228853,0.79289755,213.95,213.79,20.0]
[1733836228854,1.00205823,213.94,213.79,20.0]
[1733836229056,1.00205823,213.94,213.75,1.0]
[1733836229057,8.193,213.85,213.75,1.0]
[1733836229258,8.193,213.93,213.84,38.01976459]
[1733836229456,0.79289755,213.95,213.84,38.01976459]
[1733836229639,0.8766748,213.94,213.81,38.01976459]
[1733836230031,0.79289755,213.95,213.89,38.01976459]
[1733836230340,0.79289755,213.95,213.91,38.01976459]
[1733836230543,0.79289755,213.95,213.85,38.01976459]
[1733836230744,0.87624407,213.94,213.85,38.01976459]
[1733836231161,0.87624407,213.94,213.81,38.01976459]
[1733836231374,0.79289755,213.95,213.92,38.01976459]
[1733836231538,0.79289755,213.95,213.84,38.01976459]
[1733836231539,0.5749028,213.96,213.94,38.01976459]
[1733836231740,0.5749028,213.96,213.9,38.01976459]
[1733836232050,0.5749028,213.96,213.92,38.01976459]
[1733836232552,0.5749028,213.96,213.9,38.01976459]
[1733836232938,0.5749028,213.96,213.94,38.01976459]
[1733836233334,0.5749028,213.96,213.95,23.776884]
[1733836234064,0.5749028,213.96,213.95,42.86036459]
[1733836234267,0.5749028,213.96,213.95,66.63724859]
[1733836234468,0.5749028,213.96,213.95,28.617484]
[1733836234979,0.5749028,213.96,213.95,4.8406]
[1733836235192,0.5749028,213.96,213.95,66.63724859]
[1733836235362,0.5749028,213.96,213.95,116.46740318]
[1733836236271,0.5749028,213.96,213.95,42.86036459]
[1733836236585,0.5749028,213.96,213.92,38.01976459]
[1733836236781,0.5749028,213.96,213.9,38.01976459]
[1733836238493,0.5749028,213.96,213.93,38.01976459]
[1733836239006,0.5749028,213.96,213.92,38.01976459]
[1733836239374,0.5749028,213.96,213.94,38.01976459]
[1733836239565,0.5749028,213.96,213.92,38.01976459]
[1733836240378,0.5749028,213.96,213.93,38.01976459]
[1733836242076,0.5749028,213.96,213.92,38.01976459]
[1733836242473,0.5749028,213.96,213.91,38.01976459]
[1733836242678,0.5749028,213.96,213.79,17.24430975]
[1733836242887,0.5749028,213.96,213.83,38.01976459]
[1733836243198,0.87648252,213.95,213.82,23.10158552]
[1733836243696,0.87648252,213.95,213.78,4.8406]
[1733836243997,20.0,213.92,213.78,23.10158552]
[1733836244181,0.8767573,213.91,213.79,23.10158552]
[1733836244378,0.87678132,213.94,213.82,23.10158552]
[1733836244781,0.12549,213.91,213.79,23.10158552]
[1733836244984,1.00225486,213.91,213.79,23.10158552]
[1733836245186,1.00225486,213.91,213.78,37.55220426]
[1733836245389,7.94059,213.89,213.77,37.55220426]
[1733836245608,0.12549,213.87,213.75,1.0]
[1733836245775,0.12549,213.87,213.78,1.0]
[1733836245970,1.45186336,213.96,213.83,37.55220426]
[1733836246175,0.87661866,213.94,213.85,37.55220426]
[1733836246477,0.87661866,213.94,213.78,1.0]
[1733836246478,0.87661866,213.94,213.84,37.55220426]
[1733836246687,0.12549,213.93,213.78,38.55220426]
[1733836247004,11.9111,213.95,213.78,38.55220426]
[1733836247005,0.12549,213.91,213.78,38.55220426]
[1733836247701,0.12549,213.91,213.79,37.55220426]
[1733836247879,21.00224717,213.91,213.78,1.0]
[1733836248202,0.12549,213.89,213.78,1.0]
[1733836248400,1.00235994,213.89,213.78,1.0]
[1733836248984,20.0,213.86,213.78,1.0]
[1733836249183,0.87694176,213.85,213.78,1.0]
[1733836249901,0.12549,213.84,213.78,1.0]
[1733836250084,1.00251908,213.84,213.78,1.0]
[1733836250796,0.42553191,213.83,213.78,1.0]
[1733836250977,0.12549,213.76,213.55,11.7064]
[1733836251173,1.00295118,213.76,213.6,37.55220426]
[1733836251396,0.12549,213.74,213.6,37.55220426]
[1733836251602,0.87742626,213.74,213.65,37.55220426]
[1733836251803,0.42553191,213.73,213.69,37.55220426]
[1733836252389,0.42553191,213.73,213.7,37.55220426]
[1733836252594,0.42553191,213.73,213.72,37.55220426]
[1733836253373,0.42553191,213.73,213.7,37.55220426]
[1733836253573,0.42553191,213.73,213.69,37.55220426]
[1733836253800,0.42553191,213.73,213.65,0.12549]
[1733836253801,0.42553191,213.73,213.65,57.55220426]
[1733836254792,0.42553191,213.73,213.65,37.55220426]
[1733836255010,0.42553191,213.73,213.63,37.55220426]
[1733836255176,0.42553191,213.73,213.65,37.55220426]
[1733836255379,0.42553191,213.73,213.64,37.55220426]
[1733836256474,0.42553191,213.73,213.63,37.55220426]
[1733836256930,0.42553191,213.73,213.6,37.55220426]
[1733836257092,0.42553191,213.73,213.61,37.55220426]
[1733836257423,0.42553191,213.73,213.51,37.55220426]
[1733836257424,20.12549,213.72,213.5,11.7092]
[1733836257592,20.0,213.68,213.51,38.40863788]
[1733836257789,10.0,213.69,213.51,38.40863788]
[1733836257790,20.0,213.66,213.64,1.0]
[1733836258004,1.00325881,213.65,213.64,1.0]
[1733836258210,1.30330072,213.65,213.64,1.0]
[1733836258396,0.42553191,213.65,213.64,1.0]
[1733836260591,0.12549,213.69,213.65,0.57446809]
[1733836260934,0.87772892,213.69,213.65,0.57446809]
[1733836261124,0.8775302,213.71,213.65,0.57446809]
[1733836261422,0.8775349,213.74,213.65,0.57446809]
[1733836261624,8.69253358,213.75,213.65,0.57446809]
[1733836261997,10.0,213.74,213.65,0.57446809]
[1733836262208,0.12549,213.72,213.65,0.57446809]
[1733836262625,10.12549,213.72,213.65,0.57446809]
[1733836262797,0.12549,213.68,213.65,0.57446809]
[1733836262994,1.00321403,213.68,213.65,0.57446809]
[1733836264015,0.87772403,213.68,213.65,0.57446809]
[1733836264331,0.87759293,213.73,213.65,0.57446809]
[1733836265341,0.12549,213.68,213.65,0.57446809]
[1733836265519,0.87777066,213.68,213.65,6.809e-05]
[1733836266112,0.87759562,213.7,213.65,6.809e-05]
[1733836266440,0.87743188,213.77,213.68,23.14541679]
[1733836266600,0.87721892,213.8,213.7,23.14541679]
[1733836266802,0.87712182,213.8,213.71,23.14541679]
[1733836267022,7.8151,213.81,213.71,23.14541679]
[1733836267331,7.8151,213.81,213.65,23.77695209]
[1733836267332,11.49614575,213.87,213.75,23.14541679]
[1733836267631,11.49614575,213.87,213.72,23.14541679]
[1733836267632,21.49614575,213.87,213.72,23.14541679]
[1733836267873,11.49614575,213.87,213.74,23.14541679]
[1733836267995,11.49614575,213.87,213.75,23.14541679]
[1733836268196,8.6921898,213.87,213.78,23.14541679]
[1733836268422,8.69192178,213.94,213.8,23.14541679]
[1733836268628,8.69192178,213.94,213.75,23.14541679]
[1733836268815,2.80855836,213.91,213.8,23.14541679]
[1733836269128,0.87672423,213.9,213.8,23.14541679]
[1733836269430,0.87672423,213.9,213.79,23.14541679]
[1733836269796,0.87673219,213.93,213.83,23.14541679]
[1733836270129,7.8151,213.94,213.86,23.14541679]
[1733836270347,0.5749028,213.96,213.86,23.14541679]
[1733836270640,0.5749028,213.96,213.89,23.14541679]
[1733836270800,0.5749028,213.96,213.88,23.14541679]
[1733836271000,0.5749028,213.96,213.89,23.14541679]
[1733836271628,0.5749028,213.96,213.91,23.14541679]
[1733836271842,0.5749028,213.96,213.92,23.14541679]
[1733836272137,0.5749028,213.96,213.89,23.14541679]
[1733836272338,0.5749028,213.96,213.91,23.14541679]
[1733836272543,0.5749028,213.96,213.84,23.14541679]
[1733836272712,0.5749028,213.96,213.87,23.14541679]
[1733836272914,0.5749028,213.96,213.89,23.14541679]
[1733836273239,0.5749028,213.96,213.87,23.14541679]
[1733836273434,0.5749028,213.96,213.88,23.14541679]
[1733836273741,0.5749028,213.96,213.91,1.0]
[1733836274311,0.5749028,213.96,213.8,23.14541679]
[1733836274312,0.12549,213.93,213.8,23.14541679]
[1733836274615,1.00213735,213.93,213.81,23.14541679]
[1733836274814,21.45147896,213.96,213.84,23.14541679]
[1733836275344,21.45147896,213.96,213.76,8.1166]
[1733836275345,0.12549,213.95,213.83,23.14541679]
[1733836275515,0.12549,213.93,213.81,23.14541679]
[1733836275838,0.87665162,213.92,213.81,23.14541679]
[1733836276141,0.12549,213.91,213.77,23.14541679]
[1733836276317,0.12549,213.91,213.8,23.14541679]
[1733836276653,0.876671,213.91,213.78,23.14541679]
[1733836276849,0.876671,213.91,213.79,23.14541679]
[1733836277159,0.12549,213.9,213.77,23.14541679]
[1733836277311,0.12549,213.88,213.76,23.14541679]
[1733836277641,0.12549,213.88,213.75,5.1091]
[1733836277813,0.87682715,213.89,213.7,8.6729]
[1733836277814,20.12549,213.86,213.72,23.14541679]
[1733836278010,0.87696232,213.88,213.77,23.14541679]
[1733836278224,0.87679433,213.89,213.79,23.14541679]
[1733836278415,7.8173,213.9,213.81,23.14541679]
[1733836278637,20.0,213.92,213.8,23.14541679]
[1733836278954,8.3922028,213.96,213.84,23.14541679]
[1733836279112,8.3922028,213.96,213.8,23.14541679]
[1733836279113,0.12549,213.94,213.8,23.14541679]
[1733836279313,0.12549,213.92,213.8,23.14541679]
[1733836279516,0.12549,213.92,213.78,23.14541679]
[1733836279717,0.12549,213.92,213.77,23.14541679]
[1733836279952,0.12549,213.9,213.74,23.14541679]
[1733836280116,0.12549,213.9,213.7,8.6729]
[1733836280117,23.776884,213.86,213.7,24.14541679]
[1733836280315,0.12549,213.84,213.7,1.0]
[1733836280540,0.12549,213.82,213.7,1.0]
[1733836280721,20.12549,213.8,213.7,1.0]
[1733836280913,0.87720988,213.79,213.7,1.0]
[1733836281114,20.0,213.85,213.73,23.14541679]
[1733836281348,0.87688851,213.84,213.72,23.14541679]
[1733836281518,0.12549,213.83,213.71,23.14541679]
[1733836281719,0.12549,213.83,213.72,23.14541679]
[1733836281913,0.12549,213.83,213.7,24.14541679]
[1733836281914,0.87696806,213.82,213.7,24.14541679]
[1733836282121,20.12549,213.83,213.7,24.14541679]
[1733836282122,0.12549,213.83,213.72,23.14541679]
[1733836282428,23.902374,213.83,213.7,1.0]
[1733836282626,20.0,213.8,213.7,1.0]
[1733836282831,0.87711653,213.79,213.7,1.0]
[1733836283622,0.12549,213.81,213.7,1.0]
[1733836283825,0.87714826,213.8,213.7,1.0]
[1733836284045,0.12549,213.77,213.7,1.0]
[1733836284235,0.87740683,213.77,213.7,1.0]
[1733836284444,20.0,213.84,213.7,24.14541679]
[1733836284661,0.12549,213.82,213.7,1.0]
[1733836284861,30.0,213.84,213.7,1.0]
[1733836284862,0.12549,213.8,213.7,1.0]
[1733836285460,20.87717584,213.81,213.72,23.14541679]
[1733836285625,4.0050434,213.88,213.73,23.14541679]
[1733836285827,4.0050434,213.88,213.74,23.14541679]
[1733836286227,0.8772434,213.88,213.77,23.14541679]
[1733836286441,0.12549,213.87,213.75,23.14541679]
[1733836286637,0.12549,213.87,213.74,23.14541679]
[1733836286852,0.8772434,213.88,213.76,23.14541679]
[1733836287042,7.8173,213.89,213.78,23.14541679]
[1733836287332,0.87670844,213.88,213.77,23.14541679]
[1733836287630,7.8173,213.89,213.74,23.902374]
[1733836287631,7.8173,213.89,213.8,23.04551559]
[1733836287834,0.87675122,213.92,213.8,23.14541679]
[1733836288035,0.87675122,213.92,213.79,23.14541679]
[1733836288542,0.12549,213.91,213.78,23.14541679]
[1733836288743,0.87673396,213.9,213.79,23.14541679]
[1733836289464,20.0,213.92,213.79,23.14541679]
[1733836289465,7.7971,213.95,213.79,20.0]
[1733836289628,0.87648555,213.94,213.84,23.14541679]
[1733836289823,7.7971,213.95,213.84,23.14541679]
[1733836290029,0.87646642,213.94,213.82,23.14541679]
[1733836290257,0.87646642,213.94,213.8,23.14541679]
[1733836290432,0.12549,213.93,213.81,23.14541679]
[1733836291036,0.87646642,213.94,213.84,23.14541679]
[1733836291230,0.87649975,213.94,213.84,23.14541679]
[1733836291676,7.7971,213.95,213.84,23.14541679]
[1733836291955,0.8764414,213.94,213.84,23.14541679]
[1733836292157,0.87646925,213.94,213.84,23.14541679]
[1733836292354,0.87646925,213.94,213.8,23.14541679]
[1733836292658,0.12549,213.93,213.82,23.14541679]
[1733836293038,0.87658461,213.92,213.82,23.14541679]
[1733836293857,0.12549,213.93,213.82,23.14541679]
[1733836294064,0.12549,213.93,213.75,11.6957]
[1733836294065,0.12549,213.93,213.81,23.14541679]
[1733836294248,0.87662503,213.94,213.81,23.14541679]
[1733836294451,0.87656778,213.94,213.83,23.14541679]
[1733836294654,7.7971,213.95,213.85,23.14541679]
[1733836294830,8.67356103,213.95,213.85,23.14541679]
[1733836295031,0.5749028,213.96,213.87,23.14541679]
[1733836295739,1.45129375,213.96,213.87,23.14541679]
[1733836296064,1.45129375,213.96,213.85,23.14541679]
[1733836296274,0.12549,213.95,213.83,23.14541679]
[1733836296565,0.12549,213.93,213.81,23.14541679]
[1733836296736,0.12549,213.93,213.79,23.14541679]
[1733836296931,0.12549,213.91,213.77,23.14541679]
[1733836297132,0.12549,213.89,213.75,23.14541679]
[1733836297560,8.31239,213.87,213.72,23.14541679]
[1733836297769,0.12549,213.85,213.71,23.14541679]
[1733836297973,0.12549,213.85,213.73,23.14541679]
[1733836298176,0.12549,213.83,213.71,23.14541679]
[1733836298376,1.00259348,213.83,213.7,24.14541679]
[1733836299094,1.00259348,213.83,213.7,1.0]
[1733836299380,0.12549,213.81,213.7,1.0]